[Event "II Maxistral Compostela 2020"]
[Site "Santiago de Compostela"]
[Date "2020.02.16"]
[Round "7.2"]
[White "Gonzalez Trigal, Jose Luis"]
[Black "Gomez Dieguez, David"]
[Result "1-0"]
[ECO "E11"]
[WhiteElo "2369"]
[BlackElo "2296"]
[Annotator "RC"]
[PlyCount "95"]
[EventDate "2020.02.11"]
[EventType "tourn"]
[EventCountry "ESP"]
[SourceTitle "playchess.com"]
[Source "ChessBase"]
[SourceQuality "1"]
[TimeControl "5400+30"]

1. d4 {[%emt 0:00:00]} Nf6 {[%emt 0:04:17]} 2. Nf3 {[%emt 0:00:00]} d5 {[%emt 0:00:05]} 3. c4 {[%emt 0:00:13]} e6 {[%emt 0:00:04]} 4. g3 {[%emt 0:00:34]} Bb4+ {[%emt 0:00:05]} 5. Bd2 {[%emt 0:02:09]} Be7 {[%emt 0:00:04]} 6. Bg2 {[%emt 0:00:26]} O-O {[%emt 0:00:09]} 7. O-O {[%emt 0:00:49]} Nbd7 {[%emt 0:00:06]} 8. Qc2 {[%emt 0:01:19]} Ne4 {[%emt 0:00:06]} 9. Bc1 {[%emt 0:04:18]} c6 {[%emt 0:02:17]} 10. b3 {[%emt 0:03:02]} f5 {[%emt 0:03:09]} 11. Ba3 {[%emt 0:06:15]} Bxa3 {[%emt 0:07:38]} 12. Nxa3 {[%emt 0:00:02]} Qe7 {[%emt 0:00:04]} 13. Qc1 {[%emt 0:08:06]} b6 {[%emt 0:05:06]} 14. cxd5 {[%emt 0:12:19]} cxd5 {[%emt 0:00:39]} 15. Qb2 {[%emt 0:00:10]} Ba6 {[%emt 0:04:30]} 16. b4 {[%emt 0:00:54]} Bc4 {[%emt 0:08:55]} 17. Nxc4 {[%emt 0:07:31]} dxc4 {[%emt 0:00:05]} 18. b5 {[%emt 0:00:09]} c3 {[%emt 0:15:01]} 19. Qb3 {[%emt 0:02:04]} a5 {[%emt 0:00:30]} 20. a4 {[%emt 0:07:05]} Rac8 {[%emt 0:05:43]} 21. Rfc1 {[%emt 0:07:23]} Rfe8 {[%emt 0:05:29]} 22. e3 {[%emt 0:05:52]} Ndf6 {[%emt 0:14:51]} 23. Ne5 {[%emt 0:04:36]} Qb4 {[%emt 0:00:08]} 24. Rab1 {[%emt 0:07:10]} Nd5 {[%emt 0:04:27]} 25. Qc2 {[%emt 0:04:05]} Qa3 {[%emt 0:02:15]} 26. Bxe4 {[%emt 0:01:54]} fxe4 {[%emt 0:00:25]} 27. Nc6 {[%emt 0:01:22]} Rxc6 {[%emt 0:01:15]} 28. bxc6 {[%emt 0:00:02]} Rc8 {[%emt 0:00:13]} 29. Rb3 {[%emt 0:05:00]} Qxa4 {[%emt 0:00:53]} 30. Rxc3 {[%emt 0:00:08]} Nxc3 {[%emt 0:00:05]} 31. Qxc3 {[%emt 0:00:06]} b5 {[%emt 0:04:12]} 32. Qc5 {[%emt 0:01:24]} Qb4 {[%emt 0:00:13]} 33. Qe5 {[%emt 0:01:32]} Qb3 {[%emt 0:01:38]} 34. Qxe4 {[%emt 0:02:26]} a4 {[%emt 0:01:19]} 35. Rb1 {[%emt 0:02:40]} Qc4 {[%emt 0:00:05]} 36. Rxb5 {[%emt 0:01:48]} Rxc6 {[%emt 0:03:36]} 37. Rb8+ {[%emt 0:00:38]} Rc8 {[%emt 0:03:46]} 38. Rxc8+ {[%emt 0:00:01]} Qxc8 {[%emt 0:00:03]} 39. d5 {[%emt 0:00:08]} a3 {[%emt 0:05:20]} 40. Qa4 {[%emt 0:00:01]} exd5 {[%emt 0:00:27]} 41. Qxa3 {[%emt 0:00:02]} Qc4 {[%emt 0:00:16]} 42. Qa8+ {[%emt 0:02:06]} Kf7 {[%emt 0:00:00]} 43. Qa7+ {[%emt 0:00:39]} Kg8 {[%emt 0:00:11]} 44. Qb8+ {[%emt 0:00:14]} Kf7 {[%emt 0:00:06]} 45. Qf4+ {[%emt 0:00:10]} Ke6 {[%emt 0:00:04]} 46. Qxc4 {[%emt 0:00:34]} dxc4 {[%emt 0:00:03]} 47. Kf1 {[%emt 0:00:06]} Kd5 {[%emt 0:00:04]} 48. Ke2 {[%emt 0:00:04]} 1-0